bitfinex-derivatives/quotes_SOLF0:USTF0_20260114
["timestamp","ask_amount","ask_price","bid_price","bid_amount"]
[1768383033882,12.62093073,145.47,145.41,8.58125361]
[1768383034481,0.04915967,145.45,145.41,14.77305361]
[1768383037286,2.16875781,145.45,145.41,14.77305361]
[1768383042476,2.16875781,145.45,145.42,9.18500345]
[1768383042682,2.11959814,145.47,145.42,9.18500345]
[1768383042882,2.11959814,145.47,145.42,9.23428828]
[1768383043489,2.11959814,145.47,145.43,15.37590345]
[1768383044990,2.11959814,145.47,145.43,9.18500345]
[1768383046385,6.1881,145.5,145.44,9.18500345]
[1768383046582,2.11959814,145.48,145.44,9.18500345]
[1768383047088,2.11959814,145.48,145.45,0.04364494]
[1768383052291,81.18,145.51,145.46,9.18500345]
[1768383053092,9.23356056,145.53,145.46,9.18500345]
[1768383053290,11.3531587,145.52,145.46,15.37470345]
[1768383053898,11.3531587,145.52,145.48,0.04564031]
[1768383054502,2.11959814,145.52,145.48,0.04564031]
[1768383057601,9.23356056,145.53,145.48,0.04564031]
[1768383057799,2.11959814,145.52,145.48,0.04564031]
[1768383063406,81.16,145.54,145.49,9.18500345]
[1768383064008,15.41896056,145.57,145.49,9.18500345]
[1768383064306,9.23356056,145.56,145.49,9.18500345]
[1768383064804,83.25959814,145.57,145.51,9.22979551]
[1768383065609,116.8061,145.63,145.52,11.00646]
[1768383065610,8.98048534,145.63,145.52,11.00646]
[1768383065905,108.4937,145.69,145.52,11.00646]
[1768383065906,92.24008348,145.62,145.52,11.00646]
[1768383066105,11.10008348,145.62,145.52,11.00646]
[1768383066301,11.10008348,145.62,145.53,6.1863]
[1768383066504,11.10008348,145.62,145.56,0.04972966]
[1768383066909,2.11959814,145.6,145.56,0.04972966]
[1768383067106,11.10008348,145.6,145.54,8.88686186]
[1768383067303,11.14793873,145.6,145.52,8.88686186]
[1768383067717,11.10008348,145.6,145.52,8.88686186]
[1768383068009,2.11959814,145.58,145.52,8.88686186]
[1768383068518,0.04740735,145.57,145.52,8.88686186]
[1768383069012,9.02789269,145.57,145.53,0.04872722]
[1768383069410,8.98048534,145.57,145.53,0.04872722]
[1768383070009,0.04791108,145.56,145.53,0.04872722]
[1768383078017,9.02839642,145.56,145.53,0.04872722]
[1768383078318,11.14799456,145.56,145.5,8.88686186]
[1768383079823,11.14799456,145.56,145.5,15.07486186]
[1768383081518,9.02839642,145.56,145.5,15.07486186]
[1768383091838,11.45449016,145.54,145.48,8.84453935]
[1768383092852,11.45449016,145.54,145.45,139.52752448]
[1768383093041,11.45449016,145.54,145.46,8.84453935]
[1768383093433,0.05268488,145.51,145.47,6.1892]
[1768383095349,11.45449016,145.54,145.47,6.1892]
[1768383096546,0.0445641,145.52,145.47,6.1892]
[1768383099151,0.0445641,145.52,145.47,15.35568046]
[1768383101251,0.0445641,145.52,145.48,0.05001398]
[1768383102950,9.57806597,145.52,145.48,0.05001398]
[1768383105349,9.57806597,145.52,145.45,6.1899]
[1768383105554,9.53350187,145.51,145.45,6.1899]
[1768383106648,0.04346644,145.49,145.45,6.1899]
[1768383107356,0.04346644,145.49,145.46,9.16648046]
[1768383107556,15.72030187,145.53,145.46,9.16648046]
[1768383108461,15.72030187,145.53,145.46,15.35618046]
[1768383108756,0.04806463,145.51,145.46,15.35618046]
[1768383111152,0.04806463,145.51,145.46,9.16648046]
[1768383111356,9.5815665,145.51,145.46,9.16648046]
[1768383111758,9.5815665,145.51,145.44,15.35698046]
[1768383112148,9.5815665,145.51,145.45,9.16648046]
[1768383112553,9.53350187,145.51,145.45,9.16648046]
[1768383112860,0.04803799,145.49,145.45,9.16648046]
[1768383113757,0.04803799,145.49,145.45,15.35658046]
[1768383115458,0.04803799,145.49,145.45,9.16648046]
[1768383128273,11.90233753,145.57,145.45,10.54648046]
[1768383128469,8.59353293,145.57,145.46,8.52077395]
[1768383129675,0.04835307,145.53,145.46,8.52077395]
[1768383129867,0.04835307,145.53,145.49,14.70917395]
[1768383131475,0.04835307,145.53,145.5,8.52077395]
[1768383131673,8.59353293,145.57,145.51,8.52077395]
[1768383132665,8.59353293,145.57,145.51,14.70827395]
[1768383133778,14.77873293,145.57,145.51,8.52077395]
[1768383134566,8.59353293,145.56,145.51,8.52077395]
[1768383140882,15.01947035,145.59,145.52,8.33114876]
[1768383141272,8.83497035,145.59,145.52,8.33114876]
[1768383141675,8.83497035,145.59,145.54,0.04900501]
[1768383143187,8.83497035,145.63,145.54,8.38015377]
[1768383143584,8.83497035,145.63,145.54,8.33114876]
[1768383144082,8.83497035,145.63,145.57,0.04353655]
[1768383144784,15.01827035,145.62,145.57,0.04353655]
[1768383145085,8.83497035,145.61,145.57,0.04353655]
[1768383146783,8.83497035,145.61,145.53,6.1864]
[1768383146981,8.83497035,145.59,145.52,8.33114876]
[1768383147380,15.01917035,145.59,145.52,14.51814876]
[1768383147587,8.83497035,145.59,145.52,8.33114876]
[1768383148090,0.04736754,145.57,145.52,8.33114876]
[1768383148782,0.04736754,145.57,145.53,6.1867]
[1768383149184,0.04736754,145.57,145.53,14.51784876]
[1768383151985,0.04736754,145.57,145.53,8.33114876]
[1768383160896,0.04736754,145.57,145.54,8.4349025]
[1768383161391,0.04736754,145.57,145.52,8.4349025]
[1768383161598,2.11598263,145.56,145.48,8.4349025]
[1768383162190,0.04733212,145.53,145.48,8.4349025]
[1768383162992,0.04733212,145.53,145.5,8.4349025]
[1768383163593,2.11598263,145.56,145.5,8.4349025]
[1768383163792,2.11598263,145.56,145.5,8.47910657]
[1768383170602,2.11598263,145.56,145.51,8.4349025]
[1768383172504,8.69182056,145.55,145.5,14.66710657]
[1768383172906,2.11598263,145.56,145.5,14.66710657]
[1768383173910,2.11598263,145.56,145.51,8.4349025]
[1768383178006,8.69182056,145.55,145.5,14.66710657]
[1768383178208,89.81182056,145.6,145.52,8.4349025]
[1768383178416,6.1845,145.59,145.52,8.4349025]
[1768383178613,91.92780319,145.6,145.52,8.4349025]
[1768383178813,91.92780319,145.6,145.54,8.4349025]
[1768383179006,91.92780319,145.6,145.54,8.47846446]
[1768383179914,98.11160319,145.6,145.54,8.47846446]
[1768383180312,98.11160319,145.6,145.55,8.4349025]
[1768383180811,87.3038,145.6,145.55,8.4349025]
[1768383181013,95.99562056,145.6,145.55,8.4349025]
[1768383181212,2.11598263,145.59,145.55,8.4349025]
[1768383181607,16.99200319,145.59,145.54,0.04356196]
[1768383181813,10.80780319,145.59,145.54,0.04356196]
[1768383182506,16.99200319,145.59,145.54,0.04356196]
[1768383192425,14.87602056,145.59,145.54,0.04356196]
[1768383199636,8.01958787,145.57,145.51,8.52485421]
[1768383200734,8.01958787,145.55,145.47,8.52485421]
[1768383200936,10.1355705,145.52,145.43,153.61452774]
[1768383201231,10.1355705,145.52,145.45,8.52485421]
[1768383201437,8.01958787,145.51,145.45,8.52485421]
[1768383201634,2.11598263,145.5,145.45,8.52485421]
[1768383201828,2.16288819,145.5,145.45,8.52485421]
[1768383202635,0.04690556,145.5,145.45,8.52485421]
[1768383203340,0.04690556,145.5,145.45,14.71495421]
[1768383203540,0.04690556,145.5,145.46,0.05256056]
[1768383203934,83.23598263,145.54,145.47,8.52485421]
[1768383204127,91.2555705,145.54,145.47,8.52485421]
[1768383204532,89.13958787,145.54,145.47,8.52485421]
[1768383205039,8.01958787,145.53,145.47,8.52485421]
[1768383205338,8.01958787,145.53,145.49,0.04350783]
[1768383214139,10.1355705,145.53,145.49,0.04350783]
[1768383216347,16.3224705,145.53,145.49,0.04350783]
[1768383219352,14.20648787,145.53,145.49,0.04350783]
[1768383222852,81.12,145.54,145.49,7.94791627]
[1768383223047,7.98354962,145.55,145.49,7.94791627]
[1768383223846,7.98354962,145.55,145.49,14.13591627]
[1768383225454,14.16944962,145.55,145.49,7.94791627]
[1768383228945,81.14,145.56,145.49,7.94791627]
[1768383229151,7.98354962,145.58,145.49,7.94791627]
[1768383229547,7.98354962,145.58,145.49,7.90440844]
[1768383229947,7.98354962,145.58,145.52,0.04805534]
[1768383232061,11.29239584,145.58,145.52,0.04805534]
[1768383232759,7.98354962,145.57,145.52,0.04805534]
[1768383235954,7.98354962,145.56,145.48,7.90440844]
[1768383237854,0.05021884,145.53,145.51,0.05133574]
[1768383240154,7.98354962,145.55,145.51,0.05133574]
[1768383248269,11.04291719,145.57,145.51,0.05133574]
[1768383248471,7.73407097,145.57,145.51,0.05133574]
[1768383249577,13.91947097,145.56,145.51,0.05133574]
[1768383256577,7.73407097,145.56,145.51,6.23883574]
[1768383258481,7.73407097,145.56,145.51,14.39980595]
[1768383258686,7.73407097,145.58,145.52,14.34807021]
[1768383259393,7.73407097,145.58,145.54,0.04556269]
[1768383268597,11.56340614,145.59,145.54,0.04556269]
[1768383269187,17.74760614,145.59,145.54,0.04556269]
[1768383269393,8.25455992,145.58,145.54,0.04556269]
[1768383272699,6.1842,145.59,145.54,0.04556269]
[1768383272995,14.43875992,145.59,145.54,0.04556269]
[1768383273194,8.25455992,145.58,145.54,0.04556269]
[1768383290002,96.1464,145.67,145.54,8.36902931]
[1768383290197,2.11589729,145.62,145.54,8.36902931]
[1768383290402,2.11589729,145.62,145.54,8.32346662]
[1768383290904,2.11589729,145.62,145.57,0.04497917]
[1768383292210,10.00690683,145.62,145.57,0.04497917]
[1768383292413,7.89100954,145.61,145.57,0.04497917]
[1768383296117,10.00690683,145.61,145.57,0.04497917]
[1768383296318,7.89100954,145.6,145.57,0.04497917]
[1768383301126,10.00690683,145.6,145.57,0.04497917]
[1768383301512,7.89100954,145.6,145.57,0.04497917]
[1768383301718,10.00690683,145.6,145.57,0.04497917]
[1768383302118,7.89100954,145.6,145.57,0.04497917]
[1768383303224,10.00690683,145.62,145.57,0.04497917]
[1768383305021,7.89100954,145.61,145.57,0.04497917]
[1768383306028,10.00690683,145.61,145.57,0.04497917]
[1768383307026,7.89100954,145.61,145.57,0.04497917]
[1768383307321,7.9176228,145.64,145.57,7.98185706]
[1768383307525,10.03352009,145.64,145.57,7.98185706]
[1768383307727,7.9176228,145.64,145.57,7.98185706]
[1768383307922,7.9176228,145.64,145.58,7.93687789]
[1768383308125,10.03352009,145.66,145.58,7.93687789]
[1768383308930,7.9176228,145.66,145.61,0.04892965]
[1768383309124,10.03352009,145.66,145.61,0.04892965]
[1768383312630,7.9176228,145.65,145.61,0.04892965]
[1768383316938,10.03352009,145.64,145.61,0.04892965]
[1768383317134,7.9176228,145.63,145.59,26.99817032]
[1768383320935,7.9176228,145.63,145.58,6.1845]
[1768383324243,10.03352009,145.63,145.58,6.1845]
[1768383325249,10.03352009,145.63,145.59,0.04737287]
[1768383330050,8.19998494,145.62,145.59,0.04737287]
[1768383337949,8.21241813,145.61,145.54,7.83253123]
[1768383338154,10.32831542,145.6,145.54,7.83253123]
[1768383338354,8.21241813,145.59,145.54,7.83253123]
[1768383338856,8.21241813,145.59,145.55,6.1858]
[1768383339359,0.05098864,145.58,145.55,6.1858]
[1768383339756,8.21241813,145.61,145.56,6.1854]
[1768383346968,8.21241813,145.61,145.56,14.01793123]
[1768383347163,8.21241813,145.63,145.57,14.01753123]
[1768383347357,8.21241813,145.63,145.57,7.83253123]
[1768383348765,8.21241813,145.63,145.58,6.1844]
[1768383359777,8.21241813,145.63,145.53,117.12446544]
[1768383359778,8.21241813,145.63,145.56,6.1853]
[1768383359968,8.21241813,145.63,145.55,7.83253123]
[1768383360680,8.21241813,145.63,145.57,6.185]
[1768383363579,0.04479685,145.61,145.57,6.185]
[1768383367480,0.04479685,145.61,145.55,14.01803123]
[1768383367672,0.04479685,145.61,145.55,7.83253123]
[1768383367872,7.94534524,145.61,145.55,7.83253123]
[1768383368082,7.94534524,145.61,145.56,6.1854]
[1768383371382,7.94534524,145.61,145.53,7.92730683]
[1768383371882,7.94534524,145.61,145.54,6.1862]
[1768383373988,7.94534524,145.61,145.55,6.1858]
[1768383378481,7.94534524,145.61,145.56,6.1854]
[1768383379991,7.94534524,145.61,145.57,6.1848]
[1768383380482,7.90054839,145.61,145.57,6.1848]
[1768383380889,0.04352604,145.6,145.57,6.1848]
[1768383381990,0.04352604,145.6,145.55,14.23112388]
[1768383382296,7.69231664,145.6,145.53,8.04562388]
[1768383383286,7.69231664,145.6,145.54,6.1859]
[1768383383483,7.69231664,145.6,145.55,0.04555225]
[1768383384594,7.69231664,145.6,145.55,6.23135225]
[1768383397610,7.69231664,145.6,145.55,0.04555225]
[1768383397799,7.5379175,145.59,145.53,14.23192388]
[1768383398396,7.5379175,145.59,145.53,6.1863]
[1768383399201,7.5379175,145.59,145.53,14.19485772]
[1768383399411,7.5379175,145.57,145.51,14.19575772]
[1768383400209,0.04354008,145.55,145.51,14.19575772]
[1768383401005,7.58145758,145.55,145.48,8.00855772]
[1768383401606,7.5379175,145.53,145.45,8.00855772]
[1768383401806,10.84263876,145.52,145.45,8.00855772]
[1768383402210,10.84263876,145.52,145.46,6.1897]
[1768383402413,0.04945674,145.5,145.46,6.1897]
[1768383402608,0.04945674,145.5,145.45,8.00855772]
[1768383403010,0.04945674,145.5,145.45,14.19865772]
[1768383403210,0.04945674,145.5,145.45,8.00855772]
[1768383404918,0.04945674,145.5,145.46,6.1896]
[1768383405216,0.04945674,145.5,145.46,14.19815772]
[1768383411721,7.5379175,145.52,145.47,14.19775772]
[1768383411928,7.5379175,145.52,145.47,14.24463287]
[1768383412330,1.75e-05,145.52,145.47,8.05543287]
[1768383412532,81.14,145.56,145.48,8.00855772]
[1768383412824,2.11831865,145.58,145.5,8.00855772]
[1768383413020,2.11831865,145.56,145.52,8.00855772]
[1768383413226,2.11831865,145.56,145.48,8.00855772]
[1768383413429,2.11831865,145.54,145.48,8.00855772]
[1768383413825,2.11831865,145.52,145.46,8.00855772]
[1768383415434,0.05258067,145.5,145.46,8.00855772]
[1768383415835,0.05258067,145.5,145.46,14.19825772]
[1768383417131,0.05258067,145.5,145.47,8.00855772]
[1768383417336,2.11831865,145.52,145.47,14.24981272]
[1768383418027,2.37741607,145.53,145.47,14.24981272]
[1768383418725,0.04595983,145.51,145.47,14.24981272]
[1768383418926,0.04595983,145.51,145.47,8.06071272]
[1768383419736,0.04595983,145.51,145.47,14.24991272]
[1768383424835,0.04595983,145.51,145.47,8.06071272]
[1768383425042,0.04595983,145.51,145.47,0.052155]
[1768383425338,2.53407592,145.51,145.47,0.052155]
[1768383427739,2.53407592,145.51,145.45,8.00855772]
[1768383434342,2.56402091,145.49,145.43,7.71452407]
[1768383435146,0.05212893,145.47,145.44,7.71452407]
[1768383436146,0.05212893,145.47,145.44,13.90492407]
[1768383436348,2.56402091,145.49,145.44,13.90492407]
[1768383437245,2.11831865,145.5,145.44,13.90492407]
[1768383439838,10.92366436,145.5,145.44,13.90492407]
[1768383440042,10.92366436,145.5,145.44,7.71452407]
[1768383440845,2.62478466,145.49,145.44,7.71452407]
[1768383443148,8.81328466,145.49,145.44,7.71452407]
[1768383446257,6.1888,145.48,145.44,7.71452407]
[1768383448760,8.81318466,145.49,145.44,7.71452407]
[1768383449654,2.62478466,145.49,145.42,7.93293337]
[1768383450755,6.1896,145.48,145.42,7.93293337]
[1768383455767,2.62478466,145.49,145.42,7.93293337]
[1768383456264,2.62478466,145.49,145.43,7.74536056]
[1768383459167,2.62478466,145.49,145.43,13.93696056]
[1768383461972,8.81388466,145.49,145.43,7.74536056]
[1768383462967,2.62478466,145.49,145.43,13.93696056]
[1768383464259,2.62478466,145.49,145.43,7.74536056]
[1768383467172,8.81388466,145.49,145.43,7.74536056]
[1768383470171,6.1895,145.48,145.43,7.74536056]
[1768383470972,8.81378466,145.49,145.43,7.74536056]
[1768383471572,6.1895,145.48,145.43,7.74536056]
[1768383475275,2.78503019,145.52,145.43,7.74536056]
[1768383476880,6.1886,145.5,145.43,7.74536056]
[1768383478780,6.1891,145.49,145.43,7.74536056]
[1768383479278,2.78503019,145.52,145.43,7.74536056]
[1768383479479,2.78503019,145.52,145.46,7.74536056]
[1768383480275,6.1887,145.5,145.46,7.74536056]
[1768383480878,6.1891,145.49,145.45,0.04643278]
[1768383481076,8.03138986,145.49,145.4,163.62967928]
[1768383482867,6.1895,145.48,145.41,7.74536056]
[1768383483266,6.1895,145.48,145.42,7.74536056]
[1768383483681,180.74318948,145.53,145.42,7.74536056]
[1768383483682,8.03138986,145.53,145.42,7.74536056]
[1768383483977,8.03138986,145.52,145.42,7.74536056]
[1768383484179,8.03138986,145.52,145.46,0.05137451]
[1768383484882,6.1877,145.51,145.46,0.05137451]
[1768383485286,6.1877,145.51,145.46,7.73700414]
[1768383488485,8.03138986,145.52,145.46,7.73700414]
[1768383489885,14.21858986,145.52,145.46,7.73700414]
[1768383490280,8.03138986,145.52,145.46,7.73700414]
[1768383490483,6.1876,145.51,145.46,7.73700414]
[1768383492086,6.188,145.5,145.46,7.73700414]
[1768383493290,8.03138986,145.52,145.46,7.73700414]
[1768383494781,6.1877,145.51,145.46,7.73700414]
[1768383498790,7.7812293,145.51,145.46,0.05137451]
[1768383499692,6.1889,145.48,145.44,7.68562963]
[1768383499879,6.1889,145.48,145.42,8.32869454]
[1768383499880,8.00437161,145.48,145.42,8.32869454]
[1768383500797,6.1893,145.47,145.42,8.32869454]
[1768383501294,8.00437161,145.48,145.42,8.32869454]
[1768383506894,14.19317161,145.48,145.42,8.32869454]
[1768383509602,8.00437161,145.48,145.42,8.32869454]
[1768383517816,14.19327161,145.48,145.42,8.32869454]
[1768383527428,0.0513098,145.46,145.42,8.32869454]
[1768383539637,0.0513098,145.46,145.41,8.05608384]
[1768383540737,8.43388302,145.46,145.41,8.05608384]
[1768383540934,8.43388302,145.46,145.36,197.82501218]
[1768383540935,8.38257322,145.45,145.39,8.05608384]
[1768383542433,0.04366302,145.43,145.39,8.05608384]
[1768383544343,8.38257322,145.47,145.4,8.05608384]
[1768383544543,8.38257322,145.47,145.4,8.10460458]
[1768383545338,14.57187322,145.47,145.41,8.09088028]
[1768383545643,8.29558018,145.49,145.41,8.09088028]
[1768383545837,8.29558018,145.49,145.4,2.16737184]
[1768383545838,14.48398018,145.49,145.43,8.09088028]
[1768383546344,8.29558018,145.51,145.44,8.09088028]
[1768383546547,8.29558018,145.51,145.46,8.09088028]
[1768383547740,14.48328018,145.51,145.46,8.09088028]
[1768383548349,16.60213128,145.51,145.45,0.05006658]
[1768383549445,14.48328018,145.51,145.45,0.05006658]
[1768383550047,8.29558018,145.51,145.45,0.05006658]
[1768383550249,0.04674999,145.49,145.45,0.05006658]
[1768383550549,0.04674999,145.49,145.45,8.14094686]
[1768383551653,10.41443128,145.53,145.45,8.14094686]
[1768383551861,6.1873,145.52,145.45,8.14094686]
[1768383552754,81.18,145.54,145.46,8.09088028]
[1768383553052,89.47558018,145.54,145.46,8.09088028]
[1768383553447,89.47558018,145.54,145.49,0.0504792]
[1768383553748,6.1867,145.53,145.49,0.0504792]
[1768383553954,8.3055511,145.53,145.46,8.09088028]
[1768383555148,8.3055511,145.53,145.48,0.05231923]
[1768383556155,16.60113128,145.53,145.48,0.05231923]
[1768383556356,2.1188511,145.51,145.46,8.09088028]
[1768383558959,10.38719949,145.51,145.46,8.09088028]
[1768383561361,10.38719949,145.51,145.44,8.12167218]
[1768383562052,0.04681943,145.49,145.44,8.12167218]
[1768383575567,0.04681943,145.49,145.44,14.31207218]
[1768383576466,0.04681943,145.49,145.45,8.41403653]
[1768383590484,0.04681943,145.49,145.46,0.0436457]
[1768383591990,3.30962164,145.53,145.46,8.45768223]
[1768383591991,8.01342018,145.53,145.46,8.45768223]
[1768383592493,8.01342018,145.52,145.46,8.45768223]
[1768383593387,14.20112018,145.51,145.46,8.45768223]
[1768383595190,14.20112018,145.51,145.46,0.0436457]
[1768383596986,8.01342018,145.5,145.46,0.0436457]
[1768383597186,8.06220078,145.5,145.44,8.41403653]
[1768383599985,8.06220078,145.5,145.44,14.60453653]
[1768383600192,8.06220078,145.5,145.45,8.41403653]
[1768383601891,8.01342018,145.49,145.43,8.41403653]
[1768383602286,8.01342018,145.49,145.41,8.41403653]
[1768383602896,8.01342018,145.49,145.41,14.60583653]
[1768383603095,0.04694981,145.46,145.41,14.60583653]
[1768383603395,8.06036999,145.46,145.4,6.1922]
[1768383603695,8.06036999,145.46,145.4,14.60623653]
[1768383603996,8.01342018,145.46,145.4,14.60623653]
[1768383604182,0.05202097,145.44,145.4,8.41403653]
[1768383610198,0.05202097,145.44,145.4,14.60613653]
[1768383610395,13.627053,145.48,145.41,7.87213409]
[1768383610595,13.627053,145.48,145.41,7.92375911]
[1768383612498,81.16,145.49,145.42,7.87213409]
[1768383612687,88.598053,145.49,145.42,7.87213409]
[1768383613188,88.598053,145.49,145.44,0.04448659]
[1768383614502,94.786653,145.49,145.44,0.04448659]
[1768383619904,88.598053,145.49,145.44,7.50814442]
[1768383620403,81.16,145.49,145.44,7.50814442]
[1768383629112,88.92242726,145.49,145.44,7.50814442]
[1768383633113,7.76242726,145.49,145.44,7.50814442]
[1768383633911,90.67762164,145.5,145.39,7.46365783]
[1768383633912,11.0720489,145.46,145.39,7.46365783]
[1768383634814,11.0720489,145.46,145.39,13.65635783]
[1768383635120,7.76242726,145.45,145.39,7.46365783]
[1768383635814,0.0456368,145.43,145.39,7.46365783]
[1768383648822,0.0456368,145.43,145.4,0.04525334]
[1768383673033,7.31450265,145.43,145.38,6.193]
[1768383673439,7.31450265,145.43,145.38,13.02970038]
[1768383674941,7.31450265,145.43,145.38,6.83670038]
[1768383678637,9.38885527,145.42,145.36,7.20334435]
[1768383681448,7.07016286,145.41,145.36,7.20334435]
[1768383682250,0.04622376,145.4,145.36,7.20334435]
[1768383689056,0.04622376,145.4,145.36,13.39724435]
[1768383695464,0.04622376,145.4,145.37,6.75545037]
[1768383695662,8.9751954,145.43,145.37,6.75545037]
[1768383696963,0.05109487,145.41,145.37,6.75545037]
[1768383697366,8.31058942,145.44,145.37,6.75545037]
[1768383697867,8.9751954,145.45,145.38,6.80758744]
[1768383700662,8.9751954,145.45,145.39,12.94815037]
[1768383703763,15.1653954,145.45,145.39,12.94815037]
[1768383704369,13.04540598,145.45,145.39,12.94815037]
[1768383704568,6.85520598,145.44,145.39,12.94815037]
[1768383704961,6.85520598,145.44,145.39,6.75545037]
[1768383708373,13.04590598,145.44,145.39,6.75545037]
[1768383708873,6.85520598,145.44,145.38,0.05213707]
[1768383709471,6.191,145.43,145.38,0.05213707]
[1768383712767,6.85520598,145.42,145.38,0.05213707]
[1768383739088,13.04660598,145.42,145.38,0.05213707]
[1768383739284,6.57075018,145.41,145.35,12.94985037]
[1768383739488,6.57075018,145.41,145.35,6.75545037]
[1768383740690,6.57075018,145.4,145.35,6.75545037]
[1768383741289,6.57075018,145.4,145.33,13.04557529]
[1768383743593,0.0434528,145.38,145.33,13.04557529]
[1768383744485,0.0434528,145.38,145.34,13.04557529]
[1768383744791,6.57075018,145.44,145.35,6.85077529]
[1768383745186,12.76165018,145.44,145.37,6.85077529]
[1768383745898,0.04877788,145.42,145.39,0.04627408]
[1768383749195,6.61952806,145.42,145.37,6.85077529]
[1768383753293,0.04877788,145.42,145.37,13.04417529]
[1768383753598,0.04877788,145.42,145.38,6.85077529]
[1768383756297,6.82954707,145.42,145.36,6.57119811]
[1768383756703,6.78076919,145.42,145.36,6.57119811]
[1768383757102,0.04503912,145.4,145.36,6.57119811]
[1768383761302,0.04503912,145.4,145.34,6.57119811]
[1768383761606,6.82580831,145.4,145.34,6.57119811]
[1768383762912,6.82580831,145.4,145.34,12.76599811]
[1768383763820,6.82580831,145.4,145.34,6.57119811]
[1768383767314,8.94705122,145.4,145.34,6.57119811]
[1768383767923,0.04503912,145.4,145.35,6.57119811]
[1768383768116,6.78076919,145.42,145.36,6.6161566]
[1768383768623,6.78076919,145.42,145.36,6.57119811]
[1768383769317,6.78076919,145.42,145.38,0.05120333]
[1768383773424,8.9020121,145.42,145.38,0.05120333]
[1768383781024,6.78076919,145.41,145.38,0.05120333]
[1768383781226,6.78076919,145.41,145.36,6.57119811]
[1768383781425,6.82705627,145.41,145.36,6.57119811]
[1768383792634,6.82705627,145.41,145.34,12.51253038]
[1768383794241,6.82705627,145.41,145.35,6.31773038]
[1768383800244,6.82705627,145.41,145.37,0.04722128]
[1768383801548,6.82705627,145.41,145.33,12.25541133]
[1768383801744,6.26385952,145.4,145.33,12.25541133]
[1768383802250,6.26385952,145.4,145.33,6.06021133]
[1768383802634,12.45605952,145.4,145.33,6.06021133]
[1768383802835,0.04604577,145.38,145.33,6.06021133]
[1768383803247,0.04604577,145.38,145.34,6.06021133]
[1768383803446,6.26385952,145.4,145.34,6.06021133]
[1768383804842,0.05161179,145.38,145.34,12.25501133]
[1768383805341,6.26385952,145.42,145.35,6.06021133]
[1768383806555,6.26385952,145.42,145.37,0.04613998]
[1768383808839,6.26385952,145.42,145.37,6.10635131]
[1768383815250,6.26385952,145.42,145.37,0.04613998]
[1768383826059,6.33475226,145.44,145.38,6.33871506]
[1768383826761,6.33475226,145.44,145.38,12.53181506]
[1768383827255,0.05292462,145.42,145.38,12.53181506]
[1768383828951,6.38767688,145.42,145.38,6.1931]
[1768383829450,6.38767688,145.42,145.37,6.23963998]
[1768383831163,6.38767688,145.42,145.37,12.57835504]
[1768383873198,6.38767688,145.42,145.37,6.38485504]
[1768383897403,0.05292462,145.42,145.37,6.38485504]
[1768383898807,0.05292462,145.42,145.38,12.33332445]
[1768383916731,0.05292462,145.42,145.39,6.2377595]
[1768383930848,2.12033887,145.44,145.39,6.2377595]
[1768383931247,6.15765183,145.49,145.4,5.78357717]
[1768383931545,2.12033887,145.48,145.4,5.78357717]
[1768383932049,2.12033887,145.48,145.43,0.04377795]
[1768383932452,8.2779907,145.48,145.43,0.04377795]
[1768383934349,2.12033887,145.46,145.43,0.04377795]
[1768383934548,2.12033887,145.44,145.4,5.78357717]
[1768383935449,8.11362797,145.44,145.38,164.86034652]
[1768383935950,8.11362797,145.44,145.41,0.05019292]
[1768383936150,8.11362797,145.44,145.38,164.86034652]
[1768383936452,8.16228978,145.44,145.38,164.86034652]
[1768383937452,8.16228978,145.44,145.38,5.89882808]
[1768383938155,6.04195091,145.44,145.38,5.89882808]
[1768383940057,6.04195091,145.44,145.38,12.09192808]
[1768383942659,5.9932891,145.43,145.38,5.89882808]
[1768383952266,0.04866181,145.44,145.38,5.89882808]
[1768383953767,0.04866181,145.44,145.38,12.09182808]
[1768383953966,0.04866181,145.44,145.39,5.89882808]
[1768383960473,0.04866181,145.44,145.4,0.0465329]
[1768383971082,0.04866181,145.44,145.4,5.53354273]
[1768383971282,68.68150487,145.45,145.4,5.53354273]
[1768383971481,90.13010847,145.48,145.4,5.53354273]
[1768383972784,90.13010847,145.48,145.41,11.67860983]
[1768383972985,81.22,145.48,145.42,5.48700983]
[1768383973174,5.59740111,145.47,145.4,5.48700983]
[1768383973480,5.59740111,145.47,145.41,6.1918]
[1768383973680,5.64956664,145.46,145.41,6.1918]
[1768383976188,5.64956664,145.46,145.4,5.48700983]
[1768383976982,5.64956664,145.46,145.4,11.67920983]
[1768383980898,5.64956664,145.46,145.38,5.49044535]
[1768383981190,9.02742241,145.45,145.38,5.49044535]
[1768383981780,9.02742241,145.45,145.39,5.49044535]
[1768383982390,0.04397117,145.43,145.39,5.49044535]
[1768383984705,0.04397117,145.43,145.39,11.68314535]
[1768383989510,9.50200736,145.47,145.41,11.68214535]
[1768383989511,3.31270736,145.47,145.41,11.68214535]
[1768383989704,9.02742241,145.47,145.41,11.68214535]
[1768383989907,5.71471505,145.46,145.38,5.49044535]
[1768383990203,3.31270736,145.45,145.39,5.49044535]
[1768383990408,9.02742241,145.45,145.39,5.49044535]
[1768383990811,0.0472893,145.43,145.39,5.49044535]